fUSD/lending_fUSD_20250814
["ID","MTS","AMOUNT","RATE_DAILY","PERIOD"]
[379162411,1755169847075,-509.0,0.00031203,6]
[379162412,1755169847084,-16086.56754525,0.0003349,2]
[379162413,1755169847094,-50000.0,0.000335,7]
[379162414,1755169847104,-1210.77731796,0.00033506,2]
[379162415,1755169847113,-412.81350307,0.00033514,2]
[379162416,1755169847121,-1903.0,0.00033561,3]
[379162417,1755169847130,-10044.4809612,0.0003359,2]
[379162419,1755169847139,-151.02488847,0.0003359,2]
[379162420,1755169847148,-151.0,0.000336,7]
[379162421,1755169847157,-151.0,0.000336,7]
[379162422,1755169847166,-151.0,0.000336,7]
[379162423,1755169847175,-287.233139,0.000336,7]
[379162424,1755169847184,-287.233139,0.000336,7]
[379162425,1755169847193,-151.0,0.000336,7]
[379162426,1755169847202,-151.0,0.000336,7]
[379162427,1755169847211,-151.0,0.000336,7]
[379162428,1755169847221,-300.0,0.000336,5]
[379162429,1755169847230,-300.0,0.000336,5]
[379162430,1755169847240,-300.0,0.000336,5]
[379162431,1755169847249,-300.0,0.000336,5]
[379162432,1755169847259,-426.344542,0.000336,5]
[379162433,1755169847270,-151.0,0.000336,7]
[379162434,1755169847280,-2284.106735,0.000336,7]
[379162435,1755169847289,-2284.106735,0.000336,7]
[379162436,1755169847299,-1990.655451,0.000336,7]
[379162437,1755169847308,-151.0,0.000336,7]
[379162438,1755169847318,-1990.655451,0.000336,7]
[379162439,1755169847331,-340.268615,0.000336,7]
[379162440,1755169847341,-340.268615,0.000336,7]
[379162442,1755169847351,-151.0,0.000336,7]
[379162443,1755169847360,-196.049567,0.000336,7]
[379162444,1755169847370,-196.049567,0.000336,7]
[379162445,1755169847384,-173.983887,0.000336,7]
[379162446,1755169847394,-173.983887,0.000336,7]
[379162447,1755169847403,-231.478503,0.000336,7]
[379162448,1755169847414,-231.478503,0.000336,7]
[379162449,1755169847424,-454.99882455,0.00033663,2]
[379162450,1755169847434,-799.57978834,0.00033695,2]
[379162451,1755169847443,-13488.36992395,0.00033717,2]
[379162452,1755169847454,-799.57978834,0.00033783,2]
[379162453,1755169847465,-497.18414603,0.00033813,2]
[379162454,1755169847475,-1903.0,0.00033835,3]
[379162455,1755169847487,-10044.4809612,0.00033937,2]
[379162456,1755169847495,-600.0,0.00033938,2]
[379162457,1755169847505,-6790.60966108,0.00033947,2]
[379162458,1755169847514,-539.36946751,0.00033962,2]
[379162459,1755169847523,-222.0,0.00034,120]
[379162460,1755169847534,-500.0,0.00034021,5]
[379162461,1755169847543,-581.74241748,0.00034021,5]
[379162462,1755169847552,-502.66639659,0.00034021,5]
[379162463,1755169847561,-799.57978834,0.00034039,2]
[379162464,1755169847570,-1903.0,0.00034109,3]
[379162465,1755169847579,-581.55478899,0.00034112,2]
[379162466,1755169847588,-1000.0,0.00034192,2]
[379162467,1755169847598,-168.0,0.00034194,2]
[379162468,1755169847607,-150.0,0.00034246,2]
[379162469,1755169847616,-198.97,0.00034247,120]
[379162470,1755169847625,-623.74011048,0.00034261,2]
[379162471,1755169847635,-173.75,0.00034323,2]
[379162472,1755169847644,-507.0,0.00034346,9]
[379162473,1755169847653,-1903.0,0.00034383,3]
[379162474,1755169847663,-665.92543196,0.0003441,2]
[379162475,1755169847672,-10044.4809612,0.00034444,2]
[379162476,1755169847681,-14935.88942896,0.00034454,120]
[379162477,1755169847690,-500.0,0.00034473,5]
[379162478,1755169847700,-500.0,0.00034473,5]
[379162479,1755169847709,-500.0,0.00034473,5]
[379162480,1755169847718,-500.0,0.00034473,5]
[379162481,1755169847728,-500.0,0.00034473,5]
[379162482,1755169847738,-500.0,0.00034473,5]
[379162483,1755169847747,-449.44559963,0.00034473,5]
[379162484,1755169847757,-600.0,0.00034486,2]
[379162485,1755169847767,-20088.9619223,0.0003449,2]
[379162486,1755169847776,-50000.0,0.000345,7]
[379162487,1755169847787,-799.57978834,0.00034517,2]
[379162488,1755169847796,-708.11075344,0.0003456,2]
[379162489,1755169847806,-799.57978834,0.00034587,2]
[379162490,1755169847815,-10044.4809612,0.00034647,2]
[379162491,1755169847824,-1903.0,0.00034657,3]
[379162492,1755169847834,-13488.36992395,0.00034685,2]
[379162493,1755169847843,-750.29607492,0.00034709,2]
[379162494,1755169847852,-359.76179104,0.00034755,2]
[379162495,1755169847861,-160.0,0.00034755,2]
[379162496,1755169847870,-332.60791905,0.00034755,2]
[379162497,1755169847879,-10044.4809612,0.0003479,2]
[379162498,1755169847888,-6790.60966108,0.000348,2]
[379162499,1755169847898,-792.4813964,0.00034859,2]
[379162500,1755169847907,-256.0,0.00034878,2]
[379162501,1755169847915,-799.57978834,0.00034885,2]
[379162502,1755169847925,-1903.0,0.00034931,3]
[379162503,1755169847934,-834.66671788,0.00035008,2]
[379162504,1755169847943,-573.1336826,0.00035021,5]
[379162505,1755169847953,-600.0,0.00035034,2]
[379162506,1755169847967,-168.0,0.00035139,2]
[379162507,1755169847977,-876.85203936,0.00035158,2]
[379162508,1755169847986,-254.0,0.00035194,2]
[379162509,1755169847996,-1903.0,0.00035205,3]
[379162510,1755169848005,-799.57978834,0.00035211,2]
[379162511,1755169848014,-509.0,0.0003527,10]
[379162512,1755169848025,-256.0,0.00035296,7]
[379162513,1755169848035,-919.03736085,0.00035307,2]
[379162514,1755169848045,-1000.0,0.00035338,30]
[379162515,1755169848054,-151.0,0.000354,7]
[379162516,1755169848063,-151.0,0.000354,7]
[379162517,1755169848072,-1922.897637,0.000354,7]
[379162518,1755169848081,-1922.897637,0.000354,7]
[379162519,1755169848091,-151.0,0.000354,7]
[379162520,1755169848100,-151.0,0.000354,7]
[379162521,1755169848109,-168.0,0.00035435,2]
[379162522,1755169848119,-961.22268233,0.00035456,2]
[379162523,1755169848128,-320.07752359,0.00035473,5]
[379162524,1755169848137,-1903.0,0.00035479,3]
[379162525,1755169848146,-40177.9238446,0.0003549,2]
[379162526,1755169848155,-18144.82,0.000355,30]
[379162527,1755169848165,-50000.0,0.000355,7]
[379162528,1755169848175,-4841.0,0.00035501,2]
[379162529,1755169848184,-10044.4809612,0.00035506,2]
[379162530,1755169848198,-1843.89178041,0.00035516,2]
[379162531,1755169848210,-1366.71051647,0.00035516,2]
[379162532,1755169848219,-799.57978834,0.00035517,2]
[379162533,1755169848229,-2655.0,0.00035528,7]
[379162534,1755169848239,-2810.6338627,0.0003554,2]
[379162535,1755169848248,-507.0,0.00035547,11]
[379162536,1755169848258,-600.0,0.00035582,2]
[379162537,1755169848267,-10044.4809612,0.00035586,2]
[379162538,1755169848276,-481.51,0.00035595,2]
[379162539,1755169848287,-287.233139,0.00035596,7]
[379162540,1755169848297,-287.233139,0.00035596,7]
[379162541,1755169848306,-151.0,0.00035596,7]
[379162542,1755169848316,-2284.106735,0.00035596,7]
[379162543,1755169848325,-2284.106735,0.00035596,7]
[379162544,1755169848335,-340.268615,0.00035596,7]
[379162545,1755169848345,-340.268615,0.00035596,7]
[379162546,1755169848355,-151.0,0.00035596,7]
[379162547,1755169848365,-196.049567,0.00035596,7]
[379162548,1755169848376,-196.049567,0.00035596,7]
[379162549,1755169848386,-173.983887,0.00035596,7]
[379162550,1755169848396,-173.983887,0.00035596,7]
[379162551,1755169848406,-231.478503,0.00035596,7]
[379162552,1755169848415,-231.478503,0.00035596,7]
[379162553,1755169848425,-1366.71051645,0.00035598,2]
[379162554,1755169848435,-40177.9238446,0.00035606,2]
[379162555,1755169848444,-151.02488847,0.00035606,2]
[379162556,1755169848454,-1003.4080038,0.00035606,2]
[379162557,1755169848464,-200.0,0.00035613,2]
[379162558,1755169848476,-9471.4,0.00035615,120]
[379162559,1755169848485,-151.0,0.00035616,7]
[379162560,1755169848494,-151.0,0.00035616,7]
[379162561,1755169848504,-151.0,0.00035616,7]
[379162562,1755169848513,-151.0,0.00035616,7]
[379162563,1755169848522,-151.0,0.00035616,7]
[379162564,1755169848532,-151.0,0.00035616,7]
[379162565,1755169848541,-230.39944,0.00035616,7]
[379162566,1755169848551,-400.0,0.00035616,12]
[379162567,1755169848560,-400.0,0.00035616,12]
[379162568,1755169848569,-400.0,0.00035616,12]
[379162569,1755169848578,-1922.897637,0.00035616,7]
[379162570,1755169848588,-1922.897637,0.00035616,7]
[379162571,1755169848597,-1922.897637,0.00035616,7]
[379162572,1755169848607,-1922.897637,0.00035616,7]
[379162573,1755169848617,-400.0,0.00035616,12]
[379162574,1755169848626,-400.0,0.00035616,12]
[379162575,1755169848635,-287.233139,0.00035616,7]
[379162576,1755169848645,-287.233139,0.00035616,7]
[379162577,1755169848655,-287.233139,0.00035616,7]
[379162578,1755169848665,-287.233139,0.00035616,7]
[379162579,1755169848674,-400.0,0.00035616,12]
[379162580,1755169848686,-637.12,0.00035616,12]
[379162581,1755169848696,-637.12,0.00035616,12]
[379162582,1755169848706,-637.12,0.00035616,12]
[379162583,1755169848716,-637.12,0.00035616,12]
[379162584,1755169848726,-637.12,0.00035616,12]
[379162585,1755169848736,-637.12,0.00035616,12]
[379162586,1755169848745,-637.12,0.00035616,12]
[379162587,1755169848755,-637.12,0.00035616,12]
[379162588,1755169848765,-637.12,0.00035616,12]
[379162589,1755169848775,-637.12,0.00035616,12]
[379162590,1755169848787,-637.12,0.00035616,12]
[379162591,1755169848797,-637.12,0.00035616,12]
[379162592,1755169848806,-637.12,0.00035616,12]
[379162593,1755169848816,-637.12,0.00035616,12]
[379162594,1755169848826,-637.12,0.00035616,12]
[379162595,1755169848835,-637.12,0.00035616,12]
[379162596,1755169848845,-637.12,0.00035616,12]
[379162597,1755169848855,-637.12,0.00035616,12]
[379162598,1755169848865,-637.12,0.00035616,12]
[379162599,1755169848874,-637.12,0.00035616,12]
[379162600,1755169848884,-637.12,0.00035616,12]
[379162601,1755169848894,-637.12,0.00035616,12]
[379162602,1755169848906,-637.12,0.00035616,12]
[379162603,1755169848915,-637.35941881,0.00035616,12]
[379162604,1755169848924,-400.0,0.00035616,12]
[379162605,1755169848935,-798.27,0.00035616,12]
[379162606,1755169848944,-400.0,0.00035616,12]
[379162607,1755169848954,-400.0,0.00035616,12]
[379162608,1755169848964,-400.0,0.00035616,12]
[379162609,1755169848973,-400.0,0.00035616,12]
[379162610,1755169848983,-400.0,0.00035616,12]
[379162611,1755169848992,-151.0,0.00035616,7]
[379162612,1755169849003,-400.0,0.00035616,12]
[379162613,1755169849012,-151.0,0.00035616,7]
[379162614,1755169849022,-400.0,0.00035616,12]
[379162615,1755169849030,-400.0,0.00035616,12]
[379162616,1755169849052,-964.6,0.00035616,12]
[379162617,1755169849062,-1719.35,0.00035616,12]
[379162618,1755169849071,-400.0,0.00035616,12]
[379162619,1755169849235,-617.41,0.00035616,12]
[379162620,1755169849249,-400.0,0.00035616,12]
[379162621,1755169849260,-1237.49,0.00035616,12]
[379162622,1755169849269,-400.0,0.00035616,12]
[379162623,1755169849279,-400.0,0.00035616,12]
[379162624,1755169849290,-400.0,0.00035616,12]
[379162625,1755169849300,-400.0,0.00035616,2]
[379162626,1755169849310,-1378.44,0.00035616,12]
[379162627,1755169849325,-400.0,0.00035616,12]
[379162628,1755169849334,-400.0,0.00035616,12]
[379162629,1755169849346,-571.03,0.00035616,12]
[379162630,1755169849356,-400.0,0.00035616,12]
[379162631,1755169849366,-518.49,0.00035616,12]
[379162632,1755169849378,-977.58,0.00035616,12]
[379162633,1755169849387,-605.89,0.00035616,12]
[379162634,1755169849397,-1347.91,0.00035616,12]
[379162635,1755169849406,-400.0,0.00035616,12]
[379162636,1755169849418,-2843.63,0.00035616,12]
[379162637,1755169849427,-400.0,0.00035616,12]
[379162638,1755169849437,-444.5,0.00035616,12]
[379162639,1755169849449,-818.09,0.00035616,12]
[379162640,1755169849458,-151.0,0.00035616,7]
[379162641,1755169849468,-151.0,0.00035616,7]
[379162642,1755169849479,-151.0,0.00035616,7]
[379162643,1755169849488,-2924.03,0.00035616,12]
[379162644,1755169849497,-151.0,0.00035616,7]
[379162645,1755169849507,-271.32822987,0.00035616,12]
[379162646,1755169849516,-400.0,0.00035616,12]
[379162647,1755169849525,-984.86,0.00035616,12]
[379162648,1755169849535,-500.0,0.00035616,10]
[379162649,1755169849545,-1020.28,0.00035616,12]
[379162650,1755169849556,-443.6,0.00035616,12]
[379162651,1755169849567,-601.91,0.00035616,12]
[379162652,1755169849577,-407.25,0.00035616,12]
[379162653,1755169849586,-581.04,0.00035616,12]
[379162654,1755169849595,-1310.94,0.00035616,12]
[379162655,1755169849605,-875.27,0.00035616,12]
[379162656,1755169849615,-452.86,0.00035616,12]
[379162657,1755169849625,-544.07243376,0.00035616,12]
[379162658,1755169849634,-1138.21,0.00035616,12]
[379162659,1755169849643,-400.0,0.00035616,12]
[379162660,1755169849653,-1340.34,0.00035616,12]
[379162661,1755169849662,-400.0,0.00035616,12]
[379162662,1755169849672,-2777.58,0.00035616,12]
[379162663,1755169849681,-1037.48,0.00035616,12]
[379162664,1755169849690,-400.0,0.00035616,12]
[379162665,1755169849699,-400.0,0.00035616,12]
[379162666,1755169849709,-858.97,0.00035616,12]
[379162667,1755169849718,-391.69971631,0.00035616,12]
[379162668,1755169849728,-2363.94,0.00035616,12]
[379162669,1755169849737,-884.53,0.00035616,12]
[379162670,1755169849747,-500.0,0.00035616,12]
[379162671,1755169849757,-500.0,0.00035616,12]
[379162672,1755169849766,-500.0,0.00035616,12]
[379162673,1755169849775,-490.0,0.00035616,12]
[379162674,1755169849785,-400.0,0.00035616,12]
[379162675,1755169849795,-860.95,0.00035616,12]
[379162676,1755169849804,-1469.55,0.00035616,12]
[379162677,1755169849814,-400.0,0.00035616,12]
[379162678,1755169849824,-1059.41,0.00035616,12]
[379162679,1755169849833,-1273.46,0.00035616,12]
[379162680,1755169849844,-614.37,0.00035616,12]
[379162681,1755169849854,-400.0,0.00035616,12]
[379162682,1755169849864,-400.0,0.00035616,12]
[379162683,1755169849873,-400.0,0.00035616,12]
[379162684,1755169849883,-151.0,0.00035616,7]
[379162685,1755169849893,-570.07,0.00035616,12]
[379162686,1755169849903,-812.08,0.00035616,12]
[379162687,1755169849912,-986.15,0.00035616,12]
[379162688,1755169849922,-716.2,0.00035616,12]
[379162689,1755169849931,-1087.99,0.00035616,12]
[379162690,1755169849940,-400.0,0.00035616,12]
[379162691,1755169849950,-2284.106735,0.00035616,7]
[379162692,1755169849959,-2329.12410298,0.00035616,12]
[379162693,1755169851351,-209.98589702,0.00035616,12]
[379162694,1755169851361,-2284.106735,0.00035616,7]
[379162695,1755169851371,-856.02,0.00035616,12]
[379162696,1755169851383,-767.88,0.00035616,12]
[379162697,1755169851392,-485.99,0.00035616,12]
[379162698,1755169851402,-50.16596713,0.00035616,7]
[379162699,1755169867509,1879.308,0.00018417,12]
[379162701,1755169891648,231.59,0.00013699,2]
[379162702,1755169910942,1588.39306925,0.0003013,120]
[379162708,1755169986891,-279.01986859,0.00018421,2]
[379162712,1755170011020,3102.0,0.00030137,120]
[379162713,1755170081852,-279.01986859,0.00018421,2]
[379162717,1755170085503,-182.19383326,0.00018421,2]
[379162718,1755170088783,-259.78956402,0.00018421,2]
[379162719,1755170091311,-315.55989498,0.00018421,2]
[379162720,1755170095972,-168.0,0.00018421,2]
[379162721,1755170098846,-258.95630861,0.00018421,2]
[379162722,1755170100005,-12.46066195,0.00018421,2]
[379162723,1755170103127,700.00000001,0.00023,30]
[379162726,1755170200842,-210.0,0.00018094,2]
[379162731,1755170330713,280.0,0.0003013,120]
[379162732,1755170393372,366.0,0.0003013,120]
[379162733,1755170395842,305.0,0.0003013,120]
[379162734,1755170403096,700.00000001,0.00023,30]
[379162737,1755170460211,-196.57032566,0.00018257,2]
[379162738,1755170556616,-1324.09148034,0.00018257,2]
[379162739,1755170557141,-250.0,0.00018349,2]
[379162740,1755170557162,-1755.0,0.00018605,2]
[379162741,1755170557182,-207.21977037,0.00018605,2]
[379162742,1755170557202,-207.21977037,0.00018605,2]
[379162743,1755170557223,-1062.33978218,0.00018605,2]
[379162744,1755170557245,-250.0,0.00018709,2]
[379162745,1755170557268,-210.0,0.00018795,2]
[379162746,1755170557292,-1484.12919674,0.00018921,2]
[379162753,1755170652317,-152.0,0.00018303,2]
[379162754,1755170655389,-98.0,0.00018303,2]
[379162755,1755170660831,-300.0,0.0001892,2]
[379162756,1755170660863,-270.87080326,0.00018921,2]
[379162757,1755170660895,-207.21977037,0.00018921,2]
[379162758,1755170660904,-92.78022963,0.00018928,2]
[379162759,1755170660920,-207.58977037,0.00018928,2]
[379162760,1755170660930,-63.28103289,0.00018928,2]
[379162761,1755170660941,-58.25839348,0.00018928,2]
[379162772,1755170781474,89116.5400487,0.000209,30]
[379162773,1755170781503,20000.0,0.000209,30]
[379162774,1755170837598,210.25046549,0.00030135,120]
[379162775,1755170849363,286.06,0.00026182,120]
[379162776,1755170849501,286.06,0.00028563,120]
[379162779,1755170930611,225.0,0.0003013,120]
[379162780,1755170962109,10000.0,0.00030137,120]
[379162781,1755170986879,150.0,0.0001748,2]
[379162782,1755170987258,250.35140019,0.00017559,2]
[379162783,1755170987614,293.62201257,0.00017639,2]
[379162784,1755170987964,336.89262495,0.00017718,2]
[379162785,1755170988317,380.16323733,0.00017798,2]
[379162786,1755170988696,423.43384971,0.00017877,2]
[379162787,1755170988969,203.0,0.0003013,120]
[379162788,1755170989060,466.70446209,0.00017957,2]
[379162789,1755170990662,10000.0,0.00030137,120]
[379162790,1755170991170,170.0,0.00018705,7]
[379162791,1755171008273,10000.0,0.00030137,120]
[379162793,1755171019719,248.37,0.00013699,2]
[379162794,1755171025103,10000.0,0.00030137,120]
[379162795,1755171026754,-162.39050641,0.00018036,2]
[379162796,1755171028237,-154.84,0.00018036,2]
[379162797,1755171031589,-192.40386919,0.00018036,2]
[379162803,1755171032036,-0.34069887,0.00018036,2]
[379162804,1755171032047,-553.24568685,0.00018116,2]
[379162805,1755171032059,-596.51629923,0.00018195,2]
[379162806,1755171032069,-639.78691161,0.00018275,2]
[379162807,1755171032079,-683.05752399,0.00018354,2]
[379162808,1755171032089,-726.32813637,0.00018434,2]
[379162809,1755171032098,-1042.68952837,0.00018501,2]
[379162810,1755171032108,-769.59874875,0.00018513,2]
[379162811,1755171032117,-775.04,0.00018585,2]
[379162812,1755171032127,-250.0,0.00018585,2]
[379162813,1755171032136,-812.86936112,0.00018593,2]
[379162814,1755171032145,-1867.0,0.00018601,2]
[379162815,1755171032155,-856.1399735,0.00018672,2]
[379162816,1755171032164,-200.0,0.00018674,2]
[379162817,1755171032173,-899.41058588,0.00018752,2]
[379162818,1755171032183,-942.68119826,0.00018831,2]
[379162819,1755171032193,-187.91228395,0.00018835,2]
[379162820,1755171032204,-400.71691331,0.00018835,2]
[379162821,1755171032216,-259.48941325,0.00018835,2]
[379162822,1755171032227,-252.51058675,0.00018835,2]
[379162823,1755171035346,-766.37080274,0.00018835,2]
[379162824,1755171035356,-250.0,0.00018878,2]
[379162825,1755171035368,-303.05,0.00018889,2]
[379162826,1755171035379,-301.84,0.00018889,2]
[379162827,1755171035389,-366.33189416,0.00018911,2]
[379162828,1755171035402,-619.61991648,0.00018911,2]
[379162829,1755171035412,-180.46057363,0.00018928,2]
[379162830,1755171035422,-304.47,0.00018928,2]
[379162831,1755171035432,-1200.0,0.00018928,2]
[379162832,1755171035442,-949.46187509,0.00018928,2]
[379162833,1755171035474,-316.52362598,0.00018928,2]
[379162834,1755171035487,-330.55581015,0.00018928,2]
[379162835,1755171035530,-11296.48714628,0.00018928,2]
[379162836,1755171035540,-305.28,0.00018929,2]
[379162837,1755171035550,-305.62,0.00018929,2]
[379162838,1755171035561,-303.96,0.00018934,2]
[379162839,1755171035572,-300.51,0.00018934,2]
[379162840,1755171035582,-300.0,0.00018941,2]
[379162841,1755171035592,-300.0,0.00018941,2]
[379162842,1755171035602,-646.2154546,0.00018942,2]
[379162843,1755171035612,-305.01,0.00018976,2]
[379162844,1755171035623,-302.04,0.00018976,2]
[379162845,1755171035633,-1029.22242303,0.0001899,2]
[379162847,1755171035644,-345.0,0.00018999,2]
[379162849,1755171035654,-653.0,0.00018999,2]
[379162851,1755171035664,-187.89266412,0.00018999,2]
[379162853,1755171035675,-568.98366977,0.00018999,2]
[379162855,1755171035685,-500.0,0.00018999,2]
[379162857,1755171035694,-348.56487148,0.00018999,2]
[379162859,1755171035704,-587.35577423,0.00018999,2]
[379162861,1755171035714,-500.0,0.00018999,2]
[379162863,1755171035724,-500.0,0.00018999,2]
[379162866,1755171035734,-500.0,0.00018999,2]
[379162868,1755171035745,-112511.5734087,0.00019,2]
[379162870,1755171035757,-61955.5111331,0.00019,2]
[379162885,1755171035882,-118630.35904015,0.00019,2]
[379162887,1755171035891,-40015.49223722,0.00019,2]
[379162889,1755171035901,-202.91506463,0.00019,2]
[379162891,1755171035911,-286.06,0.00019042,2]
[379162893,1755171035921,-1755.0,0.0001913,2]
[379162895,1755171035931,-1867.0,0.00019168,2]
[379162897,1755171035941,-210.0,0.00019213,2]
[379162899,1755171035950,-1755.0,0.00019237,2]
[379162901,1755171035960,-210.0,0.00019285,2]
[379162903,1755171035970,-1755.0,0.00019554,2]
[379162905,1755171035979,-1755.0,0.00019652,2]
[379162907,1755171035989,-1867.0,0.00019669,2]
[379162909,1755171035999,-1755.0,0.00019742,2]
[379162926,1755171036455,-39934.32700285,0.0001995,15]
[379162927,1755171036489,-500.0,0.0001995,2]
[379162928,1755171036499,-500.0,0.0001995,2]
[379162929,1755171036507,-500.0,0.0001995,2]
[379162930,1755171036517,-1195.42327769,0.0001998,2]
[379162931,1755171036526,-248.37,0.00020187,2]
[379162932,1755171036536,-500.0,0.0002019,2]
[379162933,1755171036548,-500.0,0.0002019,2]
[379162934,1755171036558,-500.0,0.0002019,2]
[379162935,1755171036568,-500.0,0.0002019,2]
[379162936,1755171036578,-151.0,0.0002019,2]
[379162937,1755171036587,-229.99452096,0.0002019,2]
[379162938,1755171036597,-151.0,0.0002019,2]
[379162939,1755171036606,-151.0,0.0002019,2]
[379162940,1755171036617,-151.0,0.0002019,2]
[379162941,1755171036626,-151.0,0.0002019,2]
[379162942,1755171036635,-151.0,0.0002019,2]
[379162943,1755171036645,-151.0,0.0002019,2]
[379162944,1755171036654,-151.0,0.0002019,2]
[379162945,1755171036663,-151.0,0.0002019,2]
[379162946,1755171036673,-151.0,0.0002019,2]
[379162947,1755171036682,-151.0,0.0002019,2]
[379162948,1755171036691,-169.65297272,0.0002019,2]
[379162949,1755171036701,-42122.02356868,0.00020202,2]
[379162950,1755171036710,-250.0,0.00020443,2]
[379162951,1755171036720,-420.0,0.00020647,2]
[379162952,1755171036729,-272.0,0.00020647,2]
[379162953,1755171036739,-250.0,0.00020711,2]
[379162954,1755171036753,-1200.0,0.00020733,2]
[379162955,1755171036762,-300.0,0.00020766,2]
[379162956,1755171036773,-228.0,0.00020855,2]
[379162957,1755171036782,-161.28888695,0.00020862,2]
[379162958,1755171036792,-242467.23854054,0.000209,30]
[379162959,1755171037737,-2488.02735677,0.000209,30]
[379162960,1755171037770,-41619.31308426,0.000209,30]
[379162961,1755171037779,-1305.36460981,0.00021158,2]
[379162962,1755171037790,-583.638292,0.00021258,2]
[379162963,1755171037800,-583.638292,0.00021258,2]
[379162964,1755171037809,-22.71709568,0.00021399,2]
[379162966,1755171037821,-794.69301077,0.00021399,2]
[379162967,1755171037833,-735.02849995,0.00021399,2]
[379162968,1755171037844,-3449.14624065,0.00021399,2]
[379162969,1755171037853,-286.06,0.00021422,2]
[379162970,1755171037863,-200.0,0.00021918,2]
[379162971,1755171037872,-294.2,0.0002215,2]
[379162972,1755171037881,-667.31712449,0.0002221,2]
[379162973,1755171037891,-151.42,0.00022235,2]
[379162974,1755171037900,-151.83,0.00022235,2]
[379162975,1755171037910,-150.1,0.00022235,2]
[379162976,1755171037920,-168.14387292,0.0002234,2]
[379162978,1755171037929,-500.0,0.0002234,2]
[379162979,1755171037939,-500.0,0.0002234,2]
[379162980,1755171037949,-500.0,0.0002234,2]
[379162981,1755171037958,-500.0,0.0002234,2]
[379162982,1755171037968,-532.03239937,0.0002234,2]
[379162983,1755171037978,-500.0,0.0002234,2]
[379162984,1755171037987,-240.96145174,0.0002234,2]
[379162985,1755171037997,-639.15657067,0.0002234,2]
[379162986,1755171038008,-379.0,0.00022507,2]
[379162987,1755171038018,-284.7854871,0.00022716,2]
[379162988,1755171038028,-1305.3646098,0.00022769,2]
[379162989,1755171038037,-304.9,0.00022803,2]
[379162990,1755171038047,-1000.0,0.00022888,2]
[379162991,1755171038057,-501.35698298,0.00022888,2]
[379162992,1755171038066,-300.15,0.00022912,2]
[379162993,1755171038076,-507.0,0.00023425,2]
[379162994,1755171038086,-1009.39230493,0.00023436,2]
[379162995,1755171038095,-161.96,0.0002353,2]
[379162996,1755171038104,-286.06,0.00023802,2]
[379162997,1755171038114,-5000.00885628,0.00024,5]
[379162998,1755171038123,-5000.0,0.00024205,2]
[379162999,1755171038138,-1305.3646098,0.00024379,2]
[379163000,1755171038147,-303.35602363,0.00024557,2]
[379163001,1755171038157,-2000.0,0.00024658,15]
[379163002,1755171038166,-248.17673396,0.0002478,2]
[379163003,1755171038175,-152680.45922737,0.000248,2]
[379163016,1755171039336,-51171.27998467,0.000248,2]
[379163017,1755171039348,-1208.2,0.000248,2]
[379163018,1755171039466,-825.23952368,0.000248,2]
[379163020,1755171040404,-159.51989894,0.00020887,2]
[379163022,1755171040414,-17800.54544928,0.000248,2]
[379163023,1755171040424,-597.97504134,0.0002488,7]
[379163024,1755171040433,-583.638292,0.000249,7]
[379163026,1755171040443,-583.638292,0.000249,7]
[379163028,1755171040451,-28585.61418173,0.000249,2]
[379163071,1755171040858,-6351.3843626,0.000249,2]